[Event "GER-ch Youth-ODJM 2022 B"]
[Site "Willingen"]
[Date "2022.06.08"]
[Round "5.2"]
[White "Heß, Maxim"]
[Black "Ollhoff, Hannes"]
[Result "0-1"]
[ECO "D00"]
[WhiteElo "1146"]
[BlackElo "1235"]
[Annotator "NA RC COMBH"]
[PlyCount "49"]
[EventDate "2022.06.05"]
[EventType "swiss"]
[EventRounds "9"]
[EventCountry "GER"]
[SourceTitle "playchess.com"]
[Source "ChessBase"]
[SourceQuality "1"]
[TimeControl "40/4500+30:900+30"]

1. d4 {[%emt 0:00:00]} d5 {[%emt 0:00:00]} 2. e3 {[%emt 0:00:00]} e6 {[%emt 0:00:00]} 3. Bd3 {[%emt 0:00:00]} Bd6 {[%emt 0:00:00]} 4. Nf3 {[%emt 0:00:00]} Nf6 {[%emt 0:00:00]} 5. b3 {[%emt 0:00:00]} c5 {[%emt 0:00:00]} 6. O-O {[%emt 0:00:00]} O-O 7. Bb2 {[%emt 0:00:00]} Nc6 {[%emt 0:00:00]} 8. Nbd2 {[%emt 0:00:00]} b6 {[%emt 0:00:00]} 9. a3 {[%emt 0:00:00]} Bb7 {[%emt 0:00:00]} 10. Ne5 {[%emt 0:00:00]} Rc8 {[%emt 0:00:00]} 11. f4 {[%emt 0:00:00]} Qc7 {[%emt 0:00:00]} 12. Qf3 {[%emt 0:20:51]} Ne7 {[%emt 0:03:35]} 13. g4 {[%emt 0:02:25]} Ng6 {[%emt 0:04:06]} 14. Kf2 {[%emt 0:11:20]} c4 {[%emt 0:04:32]} 15. Bxg6 {[%emt 0:04:16]} hxg6 {[%emt 0:01:32]} 16. c3 {[%emt 0:04:32]} b5 {[%emt 0:07:47]} 17. Ke2 {[%emt 0:07:47]} Ne4 {[%emt 0:06:37]} 18. b4 {[%emt 0:00:15]} a5 {[%emt 0:03:01]} 19. h4 {[%emt 0:03:22]} axb4 {[%emt 0:06:16]} 20. axb4 {[%emt 0:02:37]} Bxb4 {[%emt 0:06:04]} 21. cxb4 {[%emt 0:02:14]} Nxd2 {[%emt 0:02:14]} 22. Kxd2 {[%emt 0:03:08]} c3+ {[%emt 0:00:30]} 23. Bxc3 {[%emt 0:00:14]} Qxc3+ {[%emt 0:00:08]} 24. Ke2 {[%emt 0:01:14]} Qb2+ {[%emt 0:00:15]} 25. Ke1 0-1

[Event "GER-ch Youth-ODJM 2022 B"]
[Site "Willingen"]
[Date "2022.06.08"]
[Round "5.9"]
[White "Glotz, Richard"]
[Black "Mehner, Lorenz"]
[Result "0-1"]
[ECO "B76"]
[WhiteElo "1607"]
[BlackElo "1609"]
[Annotator "NA RC COMBH"]
[PlyCount "90"]
[EventDate "2022.06.05"]
[EventType "swiss"]
[EventRounds "9"]
[EventCountry "GER"]
[SourceTitle "playchess.com"]
[Source "ChessBase"]
[SourceQuality "1"]
[TimeControl "40/4500+30:900+30"]

1. e4 {[%emt 0:00:00]} c5 {[%emt 0:00:00]} 2. Nf3 {[%emt 0:00:00]} d6 {[%emt 0:00:00]} 3. d4 {[%emt 0:00:00]} cxd4 {[%emt 0:00:00]} 4. Nxd4 {[%emt 0:00:00]} Nf6 {[%emt 0:00:00]} 5. f3 {[%emt 0:00:00]} g6 {[%emt 0:00:00]} 6. Nc3 {[%emt 0:00:00]} Bg7 {[%emt 0:00:00]} 7. Be3 {[%emt 0:00:00]} O-O {[%emt 0:00:00]} 8. Qd2 {[%emt 0:00:00]} Nc6 {[%emt 0:00:00]} 9. g4 {[%emt 0:00:00]} Be6 {[%emt 0:00:00]} 10. Nxe6 {[%emt 0:00:00]} fxe6 {[%emt 0:00:00]} 11. O-O-O {[%emt 0:00:00]} Ne5 {[%emt 0:00:00]} 12. Be2 {[%emt 0:00:00]} Qa5 {[%emt 0:00:00]} 13. Kb1 {[%emt 0:00:00]} Rfc8 {[%emt 0:00:00]} 14. Nb5 {[%emt 0:00:00]} Qxd2 {[%emt 0:02:06]} 15. Rxd2 {[%emt 0:00:00]} a6 {[%emt 0:02:43]} 16. Nd4 {[%emt 0:00:55]} Kf7 {[%emt 0:00:59]} 17. h4 {[%emt 0:06:49]} Nc4 {[%emt 0:04:11]} 18. Bxc4 {[%emt 0:02:33]} Rxc4 {[%emt 0:00:33]} 19. h5 {[%emt 0:06:03]} e5 {[%emt 0:07:28]} 20. hxg6+ {[%emt 0:05:38]} hxg6 {[%emt 0:01:35]} 21. Nb3 {[%emt 0:01:46]} Nxe4 {[%emt 0:12:12]} 22. fxe4 {[%emt 0:01:53]} Rxe4 {[%emt 0:00:16]} 23. Rf2+ {[%emt 0:11:24]} Bf6 {[%emt 0:04:03]} 24. g5 {[%emt 0:04:34]} Rxe3 {[%emt 0:02:07]} 25. Rhf1 {[%emt 0:04:30]} Rh3 {[%emt 0:04:32]} 26. gxf6 {[%emt 0:00:32]} e6 {[%emt 0:00:43]} 27. Re2 {[%emt 0:08:38]} Rh5 {[%emt 0:08:57]} 28. c3 {[%emt 0:05:00]} Rf5 {[%emt 0:01:14]} 29. Rd1 {[%emt 0:06:34]} d5 {[%emt 0:02:27]} 30. Rh1 {[%emt 0:03:04]} Kxf6 {[%emt 0:01:52]} 31. Nc5 {[%emt 0:01:07]} e4 {[%emt 0:10:57]} 32. Nxb7 {[%emt 0:01:43]} g5 {[%emt 0:04:30]} 33. Nc5 {[%emt 0:02:19]} g4 {[%emt 0:03:48]} 34. Rh6+ {[%emt 0:01:49]} Kg5 {[%emt 0:01:45]} 35. Rxe6 {[%emt 0:00:45]} g3 {[%emt 0:01:20]} 36. R6xe4 {[%emt 0:14:08]} dxe4 {[%emt 0:00:54]} 37. Nxe4+ {[%emt 0:00:06]} Kg4 {[%emt 0:01:34]} 38. Rg2 {[%emt 0:01:24]} Rf3 {[%emt 0:00:48]} 39. Rxg3+ {[%emt 0:00:47]} Rxg3 {[%emt 0:00:18]} 40. Nxg3 {[%emt 0:00:02]} Kxg3 {[%emt 0:00:12]} 41. b4 {[%emt 0:15:44]} Kf3 {[%emt 0:15:27]} 42. Kc2 {[%emt 0:00:53]} Ke4 {[%emt 0:00:21]} 43. a4 {[%emt 0:00:32]} Kd5 {[%emt 0:00:20]} 44. Kb3 {[%emt 0:00:00]} a5 {[%emt 0:00:00]} 45. bxa5 {[%emt 0:00:00]} Kc5 {[%emt 0:00:00]} 0-1

[Event "GER-ch Youth-ODJM 2022 B"]
[Site "Willingen"]
[Date "2022.06.08"]
[Round "5.10"]
[White "Wechtenbruch, Jamie"]
[Black "Laux, Filip"]
[Result "1-0"]
[ECO "B12"]
[WhiteElo "1489"]
[BlackElo "1395"]
[Annotator "NA RC COMBH"]
[PlyCount "73"]
[EventDate "2022.06.05"]
[EventType "swiss"]
[EventRounds "9"]
[EventCountry "GER"]
[SourceTitle "playchess.com"]
[Source "ChessBase"]
[SourceQuality "1"]
[TimeControl "40/4500+30:900+30"]

1. e4 {[%emt 0:00:00]} c6 {[%emt 0:00:00]} 2. d4 {[%emt 0:00:00]} d5 {[%emt 0:00:00]} 3. e5 {[%emt 0:00:00]} Bf5 {[%emt 0:00:00]} 4. Nc3 {[%emt 0:00:00]} e6 {[%emt 0:00:00]} 5. g4 {[%emt 0:00:00]} Bg6 {[%emt 0:00:00]} 6. h4 {[%emt 0:00:00]} h6 {[%emt 0:00:00]} 7. Bd3 {[%emt 0:00:00]} Bxd3 {[%emt 0:00:00]} 8. Qxd3 {[%emt 0:00:00]} Nd7 {[%emt 0:00:00]} 9. Be3 {[%emt 0:00:00]} Qc7 {[%emt 0:00:00]} 10. Nge2 {[%emt 0:00:00]} c5 {[%emt 0:00:06]} 11. f4 {[%emt 0:04:28]} Ne7 {[%emt 0:02:08]} 12. Nb5 {[%emt 0:16:58]} Qb6 {[%emt 0:12:44]} 13. Nd6+ {[%emt 0:00:07]} Kd8 {[%emt 0:00:10]} 14. Nxf7+ {[%emt 0:03:01]} Ke8 {[%emt 0:00:38]} 15. Nd6+ {[%emt 0:00:44]} Kd8 {[%emt 0:00:24]} 16. O-O-O {[%emt 0:03:44]} c4 {[%emt 0:02:01]} 17. Qd2 {[%emt 0:00:29]} Rh7 {[%emt 0:00:49]} 18. f5 {[%emt 0:00:57]} exf5 {[%emt 0:01:32]} 19. gxf5 {[%emt 0:02:39]} Nc6 {[%emt 0:01:11]} 20. c3 {[%emt 0:17:50]} Bxd6 {[%emt 0:01:29]} 21. exd6 {[%emt 0:00:06]} Nf6 {[%emt 0:00:13]} 22. Ng3 {[%emt 0:03:01]} Kd7 {[%emt 0:01:24]} 23. Bf4 {[%emt 0:00:28]} a5 {[%emt 0:01:16]} 24. Qc2 {[%emt 0:11:12]} a4 {[%emt 0:02:33]} 25. a3 {[%emt 0:01:38]} Rhh8 {[%emt 0:06:24]} 26. Rde1 {[%emt 0:01:49]} Qa6 {[%emt 0:03:04]} 27. Qe2 {[%emt 0:04:46]} Rae8 {[%emt 0:01:16]} 28. Qf3 {[%emt 0:01:03]} Qa8 {[%emt 0:06:08]} 29. Nh5 {[%emt 0:04:27]} Nxh5 {[%emt 0:00:15]} 30. Qxh5 {[%emt 0:00:06]} Qd8 {[%emt 0:00:12]} 31. Qf7+ {[%emt 0:00:40]} Kc8 {[%emt 0:00:52]} 32. Rxe8 {[%emt 0:00:31]} Rxe8 {[%emt 0:01:24]} 33. Qxg7 {[%emt 0:00:31]} Re2 {[%emt 0:01:41]} 34. d7+ Qxd7 {[%emt 0:00:36]} 35. Qxd7+ {[%emt 0:05:39]} Kxd7 {[%emt 0:00:06]} 36. Rf1 {[%emt 0:00:31]} Rh2 {[%emt 0:00:31]} 37. Bxh2 {[%emt 0:00:53]} 1-0

[Event "GER-ch Youth-ODJM 2022 B"]
[Site "Willingen"]
[Date "2022.06.08"]
[Round "5.11"]
[White "Ermert, Karl Hans Ragnar"]
[Black "Muller, Anker"]
[Result "1/2-1/2"]
[ECO "B13"]
[WhiteElo "1662"]
[BlackElo "1509"]
[Annotator "NA RC COMBH"]
[PlyCount "87"]
[EventDate "2022.06.05"]
[EventType "swiss"]
[EventRounds "9"]
[EventCountry "GER"]
[SourceTitle "playchess.com"]
[Source "ChessBase"]
[SourceQuality "1"]
[TimeControl "40/4500+30:900+30"]

1. e4 {[%emt 0:00:00]} c6 {[%emt 0:00:00]} 2. d4 {[%emt 0:00:00]} d5 {[%emt 0:00:00]} 3. exd5 {[%emt 0:00:00]} cxd5 {[%emt 0:00:00]} 4. Bd3 {[%emt 0:00:00]} Nf6 {[%emt 0:00:00]} 5. Bf4 {[%emt 0:00:00]} Nc6 {[%emt 0:00:00]} 6. c3 {[%emt 0:00:00]} e6 {[%emt 0:00:00]} 7. Nf3 {[%emt 0:00:00]} Bd6 {[%emt 0:00:00]} 8. Bg5 {[%emt 0:00:00]} O-O {[%emt 0:00:00]} 9. O-O {[%emt 0:00:00]} Bd7 {[%emt 0:00:00]} 10. Re1 {[%emt 0:00:00]} h6 {[%emt 0:00:00]} 11. Bh4 {[%emt 0:00:00]} Be7 {[%emt 0:02:03]} 12. Ne5 {[%emt 0:00:00]} Nxe5 {[%emt 0:02:28]} 13. dxe5 {[%emt 0:00:00]} Nh7 {[%emt 0:04:10]} 14. Bxe7 {[%emt 0:00:50]} Qxe7 {[%emt 0:00:03]} 15. f4 {[%emt 0:01:08]} Qc5+ {[%emt 0:01:54]} 16. Kh1 {[%emt 0:00:11]} Qf2 {[%emt 0:01:26]} 17. Qd2 {[%emt 0:00:52]} Qh4 {[%emt 0:02:15]} 18. Rf1 {[%emt 0:08:56]} f6 {[%emt 0:03:29]} 19. Qc2 {[%emt 0:07:57]} fxe5 {[%emt 0:10:21]} 20. Bxh7+ {[%emt 0:14:47]} Kh8 {[%emt 0:01:36]} 21. Bd3 {[%emt 0:01:22]} exf4 {[%emt 0:00:13]} 22. Nd2 {[%emt 0:01:20]} e5 {[%emt 0:01:31]} 23. Nf3 {[%emt 0:11:19]} Qf6 {[%emt 0:00:19]} 24. Be2 {[%emt 0:06:06]} g5 {[%emt 0:07:50]} 25. Rae1 {[%emt 0:09:11]} g4 {[%emt 0:05:25]} 26. Nxe5 {[%emt 0:01:10]} Qxe5 {[%emt 0:04:48]} 27. Bxg4 {[%emt 0:00:32]} Qd6 {[%emt 0:00:17]} 28. Bxd7 {[%emt 0:03:24]} Qxd7 {[%emt 0:00:01]} 29. Qg6 {[%emt 0:04:22]} Qc6 {[%emt 0:03:22]} 30. Kg1 {[%emt 0:01:54]} Qc5+ {[%emt 0:00:43]} 31. Kh1 {[%emt 0:00:07]} Qc7 {[%emt 0:01:15]} 32. Qxh6+ {[%emt 0:00:39]} Qh7 {[%emt 0:00:01]} 33. Qxh7+ {[%emt 0:04:38]} Kxh7 {[%emt 0:00:01]} 34. Re7+ {[%emt 0:00:53]} Kg6 {[%emt 0:00:09]} 35. Rxb7 Rfb8 {[%emt 0:00:35]} 36. Rxb8 {[%emt 0:03:37]} Rxb8 {[%emt 0:00:01]} 37. Rxf4 {[%emt 0:02:09]} Rxb2 {[%emt 0:00:11]} 38. h4 {[%emt 0:01:06]} Rxa2 {[%emt 0:00:07]} 39. g4 {[%emt 0:02:06]} Rc2 {[%emt 0:02:12]} 40. Rf3 {[%emt 0:03:58]} a5 {[%emt 0:05:35]} 41. h5+ {[%emt 0:00:00]} Kg5 {[%emt 0:00:00]} 42. Rf5+ {[%emt 0:00:00]} Kxg4 {[%emt 0:00:00]} 43. Rxd5 {[%emt 0:00:00]} Rxc3 {[%emt 0:00:00]} 44. Rxa5 1/2-1/2

[Event "GER-ch Youth-ODJM 2022 B"]
[Site "Willingen"]
[Date "2022.06.08"]
[Round "5.12"]
[White "Schwarz, David"]
[Black "Ruddat, Jarne"]
[Result "0-1"]
[ECO "B22"]
[WhiteElo "1244"]
[BlackElo "1415"]
[Annotator "NA RC COMBH"]
[PlyCount "24"]
[EventDate "2022.06.05"]
[EventType "swiss"]
[EventRounds "9"]
[EventCountry "GER"]
[SourceTitle "playchess.com"]
[Source "ChessBase"]
[SourceQuality "1"]
[TimeControl "40/4500+30:900+30"]

1. e4 {[%emt 0:00:00]} c5 {[%emt 0:00:00]} 2. c3 {[%emt 0:00:00]} Nc6 {[%emt 0:00:00]} 3. d4 {[%emt 0:00:00]} cxd4 {[%emt 0:00:00]} 4. cxd4 {[%emt 0:00:00]} d5 {[%emt 0:00:00]} 5. exd5 {[%emt 0:00:00]} Qxd5 {[%emt 0:00:00]} 6. Nf3 {[%emt 0:00:00]} e5 {[%emt 0:00:00]} 7. dxe5 {[%emt 0:00:00]} Qxd1+ {[%emt 0:00:00]} 8. Kxd1 {[%emt 0:00:00]} Bg4 {[%emt 0:00:00]} 9. Bf4 {[%emt 0:00:00]} O-O-O+ {[%emt 0:00:00]} 10. Kc1 {[%emt 0:00:00]} Bc5 {[%emt 0:00:00]} 11. Bc4 {[%emt 0:02:17]} Bxf3 {[%emt 0:00:00]} 12. gxf3 {[%emt 0:03:11]} Rd4 {[%emt 0:00:00]} 0-1

[Event "GER-ch Youth-ODJM 2022 B"]
[Site "Willingen"]
[Date "2022.06.08"]
[Round "6.1"]
[White "Roth, Jonas"]
[Black "Ollhoff, Hannes"]
[Result "1/2-1/2"]
[ECO "C00"]
[WhiteElo "1239"]
[BlackElo "1235"]
[Annotator "NA RC COMBH"]
[PlyCount "59"]
[EventDate "2022.06.05"]
[EventType "swiss"]
[EventRounds "9"]
[EventCountry "GER"]
[SourceTitle "playchess.com"]
[Source "ChessBase"]
[SourceQuality "1"]
[TimeControl "40/4500+30:900+30"]

1. e4 {[%emt 0:00:00]} e6 {[%emt 0:00:00]} 2. Nf3 {[%emt 0:00:00]} d5 {[%emt 0:00:00]} 3. exd5 {[%emt 0:00:00]} exd5 {[%emt 0:00:00]} 4. h3 {[%emt 0:00:00]} Bd6 {[%emt 0:00:00]} 5. d4 {[%emt 0:00:00]} Ne7 {[%emt 0:00:00]} 6. c4 {[%emt 0:00:00]} Bb4+ {[%emt 0:00:00]} 7. Nc3 {[%emt 0:00:00]} c6 {[%emt 0:01:18]} 8. Bd3 {[%emt 0:00:00]} Bf5 {[%emt 0:02:06]} 9. O-O {[%emt 0:00:00]} Bxd3 {[%emt 0:04:00]} 10. Qxd3 {[%emt 0:00:00]} O-O {[%emt 0:00:15]} 11. a3 {[%emt 0:00:00]} Ba5 {[%emt 0:01:40]} 12. b4 {[%emt 0:00:00]} Bc7 {[%emt 0:00:43]} 13. c5 {[%emt 0:00:00]} Ng6 {[%emt 0:06:05]} 14. Re1 {[%emt 0:00:00]} Nd7 {[%emt 0:01:41]} 15. Ra2 {[%emt 0:00:00]} Nf6 {[%emt 0:02:24]} 16. Nh2 {[%emt 0:04:12]} Qd7 {[%emt 0:02:38]} 17. Qf3 {[%emt 0:03:04]} Rfe8 {[%emt 0:01:25]} 18. Rae2 {[%emt 0:00:33]} Nh4 {[%emt 0:05:00]} 19. Qd3 {[%emt 0:02:08]} Ng6 {[%emt 0:03:01]} 20. Bg5 {[%emt 0:00:39]} Re6 {[%emt 0:04:04]} 21. Nf3 {[%emt 0:06:36]} Nf4 {[%emt 0:06:03]} 22. Bxf4 {[%emt 0:00:12]} Bxf4 {[%emt 0:00:16]} 23. g3 {[%emt 0:00:26]} Bc7 {[%emt 0:01:47]} 24. Rxe6 {[%emt 0:00:20]} fxe6 {[%emt 0:00:17]} 25. Ne5 {[%emt 0:00:18]} Bxe5 {[%emt 0:03:03]} 26. Rxe5 {[%emt 0:00:15]} Qf7 {[%emt 0:01:35]} 27. Ne2 {[%emt 0:02:46]} Nd7 {[%emt 0:03:46]} 28. Re3 {[%emt 0:00:26]} Re8 {[%emt 0:02:52]} 29. f4 {[%emt 0:02:16]} Nf6 {[%emt 0:04:11]} 30. Kg2 1/2-1/2

[Event "GER-ch Youth-ODJM 2022 B"]
[Site "Willingen"]
[Date "2022.06.08"]
[Round "6.2"]
[White "Direk, Oguzhan"]
[Black "Akcapinar, Timur"]
[Result "1-0"]
[ECO "A45"]
[WhiteElo "1020"]
[BlackElo "1278"]
[Annotator "NA RC COMBH"]
[PlyCount "77"]
[EventDate "2022.06.05"]
[EventType "swiss"]
[EventRounds "9"]
[EventCountry "GER"]
[SourceTitle "playchess.com"]
[Source "ChessBase"]
[SourceQuality "1"]
[TimeControl "40/4500+30:900+30"]

1. d4 {[%emt 0:00:00]} Nf6 {[%emt 0:00:00]} 2. Nc3 {[%emt 0:00:00]} g6 {[%emt 0:00:00]} 3. Bf4 {[%emt 0:00:00]} Bg7 {[%emt 0:00:00]} 4. e4 {[%emt 0:00:00]} d5 {[%emt 0:00:00]} 5. e5 {[%emt 0:00:00]} Nh5 {[%emt 0:00:00]} 6. Be3 {[%emt 0:00:00]} f5 {[%emt 0:00:00]} 7. Be2 {[%emt 0:00:00]} f4 {[%emt 0:05:36]} 8. Bd2 {[%emt 0:00:00]} O-O {[%emt 0:04:47]} 9. Bxh5 {[%emt 0:00:00]} gxh5 {[%emt 0:03:03]} 10. Qxh5 {[%emt 0:00:00]} Nc6 {[%emt 0:02:01]} 11. Nf3 {[%emt 0:00:00]} Bf5 {[%emt 0:07:38]} 12. Bxf4 {[%emt 0:00:00]} Bxc2 {[%emt 0:04:46]} 13. Bh6 {[%emt 0:00:00]} Bg6 {[%emt 0:04:26]} 14. Qh3 {[%emt 0:00:00]} Nb4 {[%emt 0:09:26]} 15. O-O {[%emt 0:00:00]} Nd3 {[%emt 0:06:52]} 16. Bxg7 {[%emt 0:00:00]} Kxg7 {[%emt 0:03:43]} 17. Ng5 {[%emt 0:00:00]} Bf5 {[%emt 0:06:46]} 18. Qg3 {[%emt 0:01:03]} Kh8 {[%emt 0:02:06]} 19. e6 {[%emt 0:05:53]} Bg6 {[%emt 0:02:31]} 20. Nf7+ {[%emt 0:00:13]} Bxf7 {[%emt 0:00:36]} 21. exf7 {[%emt 0:00:07]} Rxf7 {[%emt 0:00:05]} 22. Qxd3 {[%emt 0:00:02]} e6 {[%emt 0:01:25]} 23. Rfe1 {[%emt 0:04:21]} Qf6 {[%emt 0:03:06]} 24. f3 {[%emt 0:00:30]} Rg8 {[%emt 0:00:11]} 25. Qe3 {[%emt 0:00:37]} Qg6 {[%emt 0:00:16]} 26. Re2 {[%emt 0:00:20]} Rf6 {[%emt 0:00:53]} 27. Qe5 {[%emt 0:00:25]} Qg7 {[%emt 0:00:18]} 28. Rf1 {[%emt 0:01:10]} h6 {[%emt 0:02:48]} 29. Nb5 {[%emt 0:00:09]} c6 {[%emt 0:01:28]} 30. Nc3 {[%emt 0:01:06]} Kh7 {[%emt 0:00:13]} 31. g3 {[%emt 0:00:49]} Qf7 {[%emt 0:00:56]} 32. Ref2 {[%emt 0:00:38]} Rg5 {[%emt 0:01:56]} 33. Qe3 {[%emt 0:00:27]} Rfg6 {[%emt 0:03:11]} 34. Ne2 {[%emt 0:00:27]} Qg7 {[%emt 0:00:18]} 35. f4 {[%emt 0:00:17]} Rg4 {[%emt 0:00:12]} 36. Rg2 {[%emt 0:00:32]} h5 {[%emt 0:00:24]} 37. h3 {[%emt 0:00:30]} Rh4 {[%emt 0:00:16]} 38. Kh2 {[%emt 0:00:31]} a6 39. Rfg1 1-0

[Event "GER-ch Youth-ODJM 2022 B"]
[Site "Willingen"]
[Date "2022.06.08"]
[Round "6.4"]
[White "Kieselbach, Marvin"]
[Black "Werner, Florin"]
[Result "1/2-1/2"]
[ECO "C00"]
[WhiteElo "1662"]
[BlackElo "1609"]
[Annotator "NA RC COMBH"]
[PlyCount "68"]
[EventDate "2022.06.05"]
[EventType "swiss"]
[EventRounds "9"]
[EventCountry "GER"]
[SourceTitle "playchess.com"]
[Source "ChessBase"]
[SourceQuality "1"]
[TimeControl "40/4500+30:900+30"]

1. e4 {[%emt 0:00:00]} e6 {[%emt 0:00:00]} 2. d4 {[%emt 0:00:00]} d5 {[%emt 0:00:00]} 3. Bd3 {[%emt 0:00:00]} dxe4 {[%emt 0:00:00]} 4. Bxe4 {[%emt 0:00:00]} Nf6 {[%emt 0:00:00]} 5. Bf3 {[%emt 0:00:00]} Be7 {[%emt 0:00:00]} 6. Ne2 {[%emt 0:00:00]} O-O {[%emt 0:00:00]} 7. Be3 {[%emt 0:00:00]} Nbd7 {[%emt 0:00:00]} 8. Nbc3 {[%emt 0:00:00]} Nb6 {[%emt 0:00:00]} 9. Qd2 {[%emt 0:00:00]} Nbd5 {[%emt 0:00:00]} 10. Bg5 {[%emt 0:00:00]} h6 {[%emt 0:00:00]} 11. Bh4 {[%emt 0:00:00]} Ne4 {[%emt 0:01:24]} 12. Nxe4 {[%emt 0:00:11]} Bxh4 {[%emt 0:00:13]} 13. O-O {[%emt 0:07:52]} c6 {[%emt 0:03:39]} 14. g3 {[%emt 0:10:13]} Be7 15. Bg2 {[%emt 0:01:40]} Nf6 {[%emt 0:03:17]} 16. Rad1 {[%emt 0:05:39]} Nxe4 {[%emt 0:02:11]} 17. Bxe4 {[%emt 0:00:09]} Qc7 {[%emt 0:03:39]} 18. f4 {[%emt 0:01:27]} b6 {[%emt 0:01:32]} 19. Nc1 {[%emt 0:04:20]} Bb7 {[%emt 0:01:32]} 20. Qg2 {[%emt 0:00:21]} Rab8 {[%emt 0:02:55]} 21. Nd3 {[%emt 0:03:00]} c5 {[%emt 0:04:01]} 22. dxc5 {[%emt 0:00:46]} Bxc5+ {[%emt 0:01:06]} 23. Kh1 {[%emt 0:06:55]} Bxe4 {[%emt 0:01:56]} 24. Qxe4 {[%emt 0:00:12]} Rbd8 {[%emt 0:02:58]} 25. Ne5 {[%emt 0:06:30]} Rxd1 {[%emt 0:02:44]} 26. Rxd1 {[%emt 0:00:13]} Rd8 {[%emt 0:00:07]} 27. Rxd8+ {[%emt 0:02:16]} Qxd8 {[%emt 0:00:04]} 28. Nd3 {[%emt 0:03:37]} Qd4 {[%emt 0:06:10]} 29. Qxd4 {[%emt 0:00:15]} Bxd4 {[%emt 0:00:06]} 30. Kg2 {[%emt 0:00:44]} Kf8 {[%emt 0:03:45]} 31. c3 {[%emt 0:01:18]} Bf6 {[%emt 0:00:28]} 32. Kf3 {[%emt 0:03:39]} Ke7 {[%emt 0:01:38]} 33. Ke4 {[%emt 0:00:56]} g6 {[%emt 0:02:57]} 34. Nb4 {[%emt 0:14:34]} Kd6 {[%emt 0:04:14]} 1/2-1/2

[Event "GER-ch Youth-ODJM 2022 B"]
[Site "Willingen"]
[Date "2022.06.08"]
[Round "6.5"]
[White "Günther, Arthur"]
[Black "Götz, Timon"]
[Result "1-0"]
[ECO "B30"]
[WhiteElo "1579"]
[BlackElo "1558"]
[Annotator "NA RC COMBH"]
[PlyCount "25"]
[EventDate "2022.06.05"]
[EventType "swiss"]
[EventRounds "9"]
[EventCountry "GER"]
[SourceTitle "playchess.com"]
[Source "ChessBase"]
[SourceQuality "1"]
[TimeControl "40/4500+30:900+30"]

1. e4 {[%emt 0:00:00]} c5 {[%emt 0:00:00]} 2. Nf3 {[%emt 0:00:00]} Nc6 {[%emt 0:00:00]} 3. Bb5 {[%emt 0:00:00]} Qc7 {[%emt 0:00:00]} 4. O-O {[%emt 0:00:00]} g6 {[%emt 0:00:00]} 5. d4 {[%emt 0:02:50]} cxd4 {[%emt 0:00:00]} 6. Bxc6 {[%emt 0:09:46]} bxc6 {[%emt 0:00:00]} 7. Qxd4 {[%emt 0:00:52]} f6 {[%emt 0:00:00]} 8. Re1 {[%emt 0:04:24]} e5 {[%emt 0:00:00]} 9. Qc4 {[%emt 0:05:05]} Rb8 {[%emt 0:02:31]} 10. Nc3 {[%emt 0:09:09]} Qa5 {[%emt 0:07:47]} 11. Nd2 {[%emt 0:07:55]} Ba6 {[%emt 0:09:27]} 12. Nb3 {[%emt 0:02:10]} Rxb3 {[%emt 0:02:13]} 13. Qxb3 {[%emt 0:01:16]} 1-0

[Event "GER-ch Youth-ODJM 2022 B"]
[Site "Willingen"]
[Date "2022.06.08"]
[Round "6.6"]
[White "Mehner, Lorenz"]
[Black "Hoffmann, Alexander"]
[Result "0-1"]
[ECO "A33"]
[WhiteElo "1609"]
[BlackElo "1638"]
[Annotator "NA RC COMBH"]
[PlyCount "78"]
[EventDate "2022.06.05"]
[EventType "swiss"]
[EventRounds "9"]
[EventCountry "GER"]
[SourceTitle "playchess.com"]
[Source "ChessBase"]
[SourceQuality "1"]
[TimeControl "40/4500+30:900+30"]

1. d4 {[%emt 0:00:00]} Nf6 {[%emt 0:00:00]} 2. c4 {[%emt 0:00:00]} e6 {[%emt 0:00:00]} 3. Nc3 {[%emt 0:00:00]} c5 {[%emt 0:00:00]} 4. Nf3 {[%emt 0:00:00]} cxd4 {[%emt 0:00:00]} 5. Nxd4 {[%emt 0:00:00]} Nc6 {[%emt 0:00:00]} 6. b3 {[%emt 0:00:00]} Bb4 {[%emt 0:00:00]} 7. Bb2 {[%emt 0:00:00]} Ne4 {[%emt 0:00:00]} 8. Nxc6 {[%emt 0:00:00]} bxc6 {[%emt 0:00:00]} 9. Qc2 {[%emt 0:02:09]} Qf6 {[%emt 0:00:00]} 10. e3 {[%emt 0:09:30]} Nxc3 {[%emt 0:18:26]} 11. a3 {[%emt 0:01:22]} Na4+ {[%emt 0:01:18]} 12. axb4 {[%emt 0:00:29]} Qxb2 {[%emt 0:00:18]} 13. Qxb2 {[%emt 0:00:48]} Nxb2 {[%emt 0:00:03]} 14. Ra2 {[%emt 0:01:49]} Nxc4 {[%emt 0:01:52]} 15. bxc4 {[%emt 0:02:40]} c5 {[%emt 0:12:52]} 16. b5 {[%emt 0:04:25]} Bb7 {[%emt 0:01:23]} 17. Kd2 {[%emt 0:01:49]} a6 {[%emt 0:02:16]} 18. f3 {[%emt 0:02:22]} axb5 {[%emt 0:01:14]} 19. Rxa8+ {[%emt 0:00:19]} Bxa8 {[%emt 0:00:01]} 20. cxb5 {[%emt 0:00:22]} Kd8 {[%emt 0:03:14]} 21. Bd3 {[%emt 0:02:22]} Kc7 {[%emt 0:01:19]} 22. Kc3 {[%emt 0:01:34]} Bb7 {[%emt 0:07:19]} 23. Ra1 {[%emt 0:06:30]} h6 {[%emt 0:01:48]} 24. e4 {[%emt 0:03:04]} d5 {[%emt 0:03:39]} 25. exd5 {[%emt 0:02:11]} exd5 {[%emt 0:00:16]} 26. Re1 {[%emt 0:02:11]} Kd6 {[%emt 0:00:51]} 27. Bc2 {[%emt 0:07:45]} Ra8 {[%emt 0:02:37]} 28. Rb1 {[%emt 0:06:44]} Re8 {[%emt 0:02:19]} 29. Kd2 {[%emt 0:00:52]} c4 {[%emt 0:01:57]} 30. Ba4 {[%emt 0:05:14]} Ra8 {[%emt 0:01:28]} 31. Bc2 {[%emt 0:03:38]} Ra2 {[%emt 0:01:21]} 32. Kc1 {[%emt 0:00:58]} g6 {[%emt 0:01:14]} 33. Rb2 {[%emt 0:01:11]} Rxb2 {[%emt 0:00:21]} 34. Kxb2 {[%emt 0:00:11]} Kc5 {[%emt 0:00:28]} 35. Ba4 {[%emt 0:00:54]} Kb4 {[%emt 0:01:14]} 36. Bd1 {[%emt 0:00:14]} Kxb5 {[%emt 0:00:20]} 37. Kc3 {[%emt 0:00:27]} Kc5 {[%emt 0:00:10]} 38. Be2 {[%emt 0:00:30]} d4+ {[%emt 0:00:13]} 39. Kd2 {[%emt 0:00:24]} d3 {[%emt 0:00:20]} 0-1